[Event "ESP-ch Teams Primera 2022"]
[Site "Sanxenxo Pontevedra"]
[Date "2022.09.21"]
[Round "5.24"]
[White "Dorado Meijide, Andrea"]
[Black "Recuenco Andres, Javier"]
[Result "0-1"]
[ECO "B01"]
[WhiteElo "1801"]
[BlackElo "1925"]
[Annotator "TA"]
[PlyCount "58"]
[EventDate "2022.09.17"]
[EventType "team-tourn"]
[EventCountry "ESP"]
[SourceTitle "playchess.com"]
[Source "ChessBase"]
[SourceQuality "1"]
[TimeControl "5400+30"]

{[%evp 9,58,58,57,31,145,127,323,314,312,355,475,478,475,478,462,466,452,396,389,272,270,-64,-77,-436,-422,-616,-425,-2038,-835,-791,-614,-583,-469,-417,-352,-1104,-556,-12837,-12837,-12837,-12838,-12838,-12839,-12837,-12837,-12833,-6411,-10981,-12825,-29995,-29992]} 1. e4 {[%emt 0:00:04]} d5 {[%emt 0:00:10]} 2. exd5 {[%emt 0:00:08]} Nf6 {[%emt 0:00:05]} 3. d4 {[%emt 0:00:08]} Bg4 {[%emt 0:00:07]} 4. Nf3 {[%emt 0:00:19]} Qxd5 {[%emt 0:00:09]} 5. Be2 {[%emt 0:00:20]} Nc6 {[%emt 0:00:16]} 6. h3 {[%emt 0:00:30] B01: Scandinavian Defence.} Qh5 {[%emt 0:00:59]} (6... Bxf3 $14 7. Bxf3 Qd7) 7. O-O $16 {[%emt 0:00:27]} O-O-O $2 {[%emt 0:00:22]} (7... Bxf3 $16 8. Bxf3 Qf5) 8. hxg4 $18 {White has a decisive advantage.} Nxg4 {[%emt 0:00:07][%cal Oc6d4] Threatens to win with ...Nxd4!} 9. Bf4 {[%emt 0:01:30] Ng5 is the strong threat.} e5 {[%emt 0:00:13]} 10. Nxe5 {[%emt 0:01:04]} Ncxe5 {[%emt 0:00:59]} 11. Bxe5 {[%emt 0:00:20] A strong pair of Bishops.} f5 {[%emt 0:00:50]} 12. Bxg4 {[%emt 0:10:07]} fxg4 {[%emt 0:00:17] [#]} 13. Qd3 $146 {[%emt 0:32:11]} ({Predecessor:} 13. Na3 Bc5 14. b4 Bxb4 15. Nc4 Rhe8 16. Rb1 Bc5 17. c3 Re6 18. Ne3 Rxe5 19. Qxg4+ Qxg4 20. Nxg4 Rg5 21. Ne5 Bd6 22. Nf7 Rh5 {½-½ (22) Sahin,H (1869)-Donmez,Y (2039) Antalya 2017}) 13... Bd6 {[%emt 0:05:41]} 14. Qg3 {[%emt 0:01:20]} Rhe8 {[%emt 0:01:57][%cal Bh8e8,Be8e5,Be5e4][%mdl 32]} 15. f3 $2 {[%emt 0:07:25]} ({Better is} 15. Re1 $18) 15... Rxe5 $15 {[%emt 0:09:20]} 16. Nc3 {[%emt 0:19:48][%mdl 8192] Prevents Re4.} (16. Qxg4+ $17 Qxg4 17. fxg4) 16... Re4 $1 $19 {[%emt 0:19:31]} 17. f4 {[%emt 0:08:09]} (17. Qxd6 $142 Rxd6 18. Nxe4 Rxd4 19. fxg4) 17... Rxd4 {[%emt 0:00:52] Hoping for ...Bc5.} 18. Nd1 {[%emt 0:10:59] [#]} (18. Qh2 $142 Qxh2+ 19. Kxh2) 18... Bc5 {[%emt 0:05:41]} (18... Rxd1 $142 $1 {[%mdl 512]} 19. Qh2 (19. b4 Rxa1) 19... Rxf1+ 20. Rxf1 Qb5) 19. Nf2 {[%emt 0:01:21]} Rd2 {[%emt 0:01:02]} 20. Rae1 {[%emt 0:01:05]} Rxf2 {[%emt 0:04:48]} 21. Rxf2 {[%emt 0:00:33]} Rd2 {[%emt 0:00:45][%cal Bd8d2,Bd2c2,Bc2c1,Bc1f1][%mdl 96] Pin} 22. Ref1 {[%emt 0:00:55]} (22. Re3 Rd6 23. b3) 22... Rxc2 {[%emt 0:11:00][%mdl 64] [#] Pin} 23. Qb3 {[%emt 0:01:29] Qe6+ would kill now.} Bxf2+ {[%emt 0:11:28]} 24. Rxf2 {[%emt 0:00:06][%mdl 4096] Endgame KQR-KQR} Rc1+ {[%emt 0:00:39]} 25. Rf1 {[%emt 0:01:11]} Qc5+ {[%emt 0:00:48]} 26. Kh2 {[%emt 0:00:16]} Rxf1 {[%emt 0:00:31]} 27. Qe6+ {[%emt 0:01:37]} Kd8 {[%emt 0:00:27]} 28. Qg8+ {[%emt 0:00:06]} Kd7 {[%emt 0:00:16] ( -> ...Qg1+)} 29. Qxh7 {[%emt 0:00:47]} g3+ {[%emt 0:02:19] Weighted Error Value: White=1.68/Black=0.98} 0-1

[Event "ESP-ch Teams Primera 2022"]
[Site "Sanxenxo Pontevedra"]
[Date "2022.09.22"]
[Round "6.1"]
[White "Bacrot, Etienne"]
[Black "Reinaldo Castineira, Roi"]
[Result "1-0"]
[ECO "C02"]
[WhiteElo "2647"]
[BlackElo "2496"]
[Annotator "TA"]
[PlyCount "152"]
[EventDate "2022.09.17"]
[EventType "team-tourn"]
[EventCountry "ESP"]
[SourceTitle "playchess.com"]
[Source "ChessBase"]
[SourceQuality "1"]
[TimeControl "5400+30"]

{[%evp 15,152,31,41,26,35,32,25,36,32,23,33,38,56,24,32,27,27,24,28,18,25,16,18,27,37,18,14,21,47,15,25,12,12,12,12,13,60,62,55,62,123,81,77,4,4,8,4,0,0,0,0,-14,0,0,0,0,0,0,0,0,0,0,0,0,0,0,0,0,0,0,8,0,22,18,67,57,112,27,48,49,55,55,57,58,58,58,97,97,97,97,124,48,83,16,16,16,16,16,12,0,14,14,14,14,14,14,17,8,8,8,8,8,35,35,42,42,57,58,57,32,39,30,113,120,120,75,75,22,72,72,119,119,212,174,237,237,29985,29986,29983]} 1. e4 {[%emt 0:05:53]} e6 {[%emt 0:00:40]} 2. d4 {[%emt 0:00:05]} d5 {[%emt 0:00:09]} 3. e5 {[%emt 0:00:05]} c5 {[%emt 0:00:24]} 4. c3 {[%emt 0:00:05]} Nc6 {[%emt 0:00:23]} 5. Nf3 {[%emt 0:00:07]} Bd7 {[%emt 0:01:47]} 6. Be2 {[%emt 0:02:03]} Nge7 {[%emt 0:03:36][%cal Bg8e7,Be7f5,Bf5h4][%mdl 32]} 7. O-O {[%emt 0:01:12]} Nf5 {[%emt 0:01:37]} 8. dxc5 {[%emt 0:02:56]} Bxc5 {[%emt 0:00:17]} 9. Bd3 {[%emt 0:00:06] C02: French: Advance Variation.} Nh4 {[%emt 0:07:43]} 10. Nbd2 {[%emt 0:00:20]} Ng6 {[%emt 0:13:37]} 11. Nb3 {[%emt 0:01:52] Hoping for Bxg6. White has an edge.} Bb6 {[%emt 0:00:20]} 12. Re1 {[%emt 0:02:37]} Bc7 {[%emt 0:14:20][%cal Rg6e5]} 13. Bxg6 {[%emt 0:10:16]} fxg6 {[%emt 0:00:41]} 14. Bg5 {[%emt 0:05:35]} Qc8 {[%emt 0:00:07] [#]} 15. Nbd4 $146 {[%emt 0:06:08]} ({Predecessor:} 15. Rc1 O-O 16. c4 dxc4 17. Rxc4 Rf5 18. Bh4 a6 19. Bg3 Bb6 20. Nbd2 Qe8 21. Ne4 {1-0 (28) Stevic,H (2613)-Ulybin,M (2498) Sarajevo 2014}) 15... O-O {[%emt 0:02:03]} 16. Nxc6 {[%emt 0:03:39]} Bxc6 {[%emt 0:06:20]} 17. Nd4 {[%emt 0:01:48]} Bb6 {[%emt 0:00:41]} 18. Be7 {[%emt 0:00:45]} Rf7 {[%emt 0:00:10]} 19. Bd6 {[%emt 0:00:32]} Qd7 {[%emt 0:06:17]} 20. a4 {[%emt 0:12:25]} a5 {[%emt 0:09:43]} 21. b3 {[%emt 0:02:05]} Rf4 {[%emt 0:00:32]} 22. Qd2 {[%emt 0:17:59]} Qf7 {[%emt 0:09:07]} 23. Re3 {[%emt 0:00:07]} g5 {[%emt 0:02:10]} 24. h3 {[%emt 0:00:53]} Qg6 {[%emt 0:01:23]} 25. Rg3 {[%emt 0:01:14] aiming for Qxf4.} Bxd4 {[%emt 0:03:46]} (25... Qh5 $11) 26. cxd4 $14 {[%emt 0:00:14]} Qf5 {[%emt 0:00:03]} 27. Rc1 {[%emt 0:01:29]} h5 {[%emt 0:00:05]} ({Black should play} 27... Rc8 $14) 28. f3 {[%emt 0:06:31] White is more active.} g4 {[%emt 0:05:19][%cal Rg4f3]} 29. fxg4 {[%emt 0:01:50]} (29. Rf1 $16) 29... hxg4 $11 {[%emt 0:00:05]} 30. hxg4 {[%emt 0:05:58][%cal Bh3g4,Bg4g5,Bg5g6][%mdl 32]} Qe4 {[%emt 0:01:47]} 31. g5 {[%emt 0:02:55]} Qxd4+ {[%emt 0:00:04]} 32. Qxd4 {[%emt 0:00:03]} Rxd4 {[%emt 0:00:03]} 33. Rf1 {[%emt 0:00:11] Threatens to win with g6.} Rh4 {[%emt 0:00:03]} 34. g6 {[%emt 0:01:03] Rgf3 would kill now.} d4 {[%emt 0:00:27]} 35. Be7 {[%emt 0:00:53]} Rh6 {[%emt 0:01:07]} 36. Rf4 {[%emt 0:00:38]} d3 {[%emt 0:00:39]} 37. Rd4 {[%emt 0:02:23]} Be8 {[%emt 0:00:25]} 38. Rgxd3 {[%emt 0:01:51]} Rxg6 {[%emt 0:00:41]} 39. Rd8 {[%emt 0:00:22]} Rxd8 {[%emt 0:00:04]} 40. Bxd8 {[%emt 0:00:04][%mdl 4096] Endgame KRB-KRB} ({Of course not} 40. Rxd8 Kf7 41. Bh4 Rg4 $15) 40... Bc6 {[%emt 0:01:04]} 41. g3 {[%emt 0:00:09]} Rh6 {[%emt 0:03:03]} 42. Bxa5 {[%emt 0:00:14]} Rh1+ {[%emt 0:00:06]} 43. Kf2 {[%emt 0:00:04]} Rb1 {[%emt 0:00:04]} 44. Bd2 {[%emt 0:01:32]} Bd5 {[%emt 0:00:31]} (44... Be4 $11 45. Rd8+ Kh7) 45. b4 $1 $14 {[%emt 0:00:06]} Rb3 {[%emt 0:00:18]} (45... Kf7 $14) 46. Bc3 {[%emt 0:00:52]} (46. Rxb3 $16 Bxb3 47. a5) 46... Kf7 {[%emt 0:00:03]} 47. Ke3 {[%emt 0:02:27]} Kg6 {[%emt 0:02:43]} 48. Kd4 {[%emt 0:00:39] Inhibits Bc4.} Kf5 {[%emt 0:02:26]} 49. a5 {[%emt 0:00:40]} Rb1 {[%emt 0:02:02]} 50. Kc5 {[%emt 0:00:48]} Rc1 {[%emt 0:01:33]} 51. Re3 {[%emt 0:00:38]} g5 {[%emt 0:02:11]} 52. b5 {[%emt 0:00:29]} Rb1 {[%emt 0:00:32]} 53. Be1 {[%emt 0:00:29]} (53. a6 $16 {Black must now prevent a7.} bxa6 54. bxa6) 53... Be4 {[%emt 0:00:29]} 54. a6 {[%emt 0:00:12]} (54. Bd2 $16) 54... bxa6 $1 $11 {[%emt 0:00:10]} 55. bxa6 {[%emt 0:00:01]} Ra1 $1 {[%emt 0:00:41]} 56. Kb6 {[%emt 0:00:15]} Rb1+ {[%emt 0:00:05]} 57. Kc5 {[%emt 0:00:26]} Ra1 $1 {[%emt 0:00:03]} 58. Kb5 {[%emt 0:00:04][%cal Oe3e4] Rxe4! is the strong threat.} Bg2 {[%emt 0:00:28]} 59. Ba5 {[%emt 0:00:54] With the idea Rb3.} Rb1+ {[%emt 0:01:35]} 60. Kc5 {[%emt 0:00:06] next Ra3 is good for White.} Ra1 {[%emt 0:00:07] Inhibits Ra3.} 61. Kb6 {[%emt 0:00:25] Black should prevent Rb3.} Rb1+ {[%emt 0:00:21]} 62. Ka7 {[%emt 0:00:20]} Ra1 {[%emt 0:01:15]} 63. Bb4 {[%emt 0:01:43]} ({But not} 63. Kb6 $6 Rb1+ 64. Ka7 g4 $16) 63... Rb1 {[%emt 0:00:33]} 64. Bd6 {[%emt 0:00:35]} Kg4 {[%emt 0:00:13]} 65. Ra3 {[%emt 0:00:26]} Bf3 {[%emt 0:00:46]} 66. Be7 {[%emt 0:00:05][%cal Oe7g5]} Bd5 {[%emt 0:00:34]} 67. Ra4+ {[%emt 0:00:41]} Kf5 $1 {[%emt 0:00:05]} 68. g4+ {[%emt 0:00:52]} Kxe5 {[%emt 0:00:49]} (68... Kg6 $1 $11 {keeps the balance.}) 69. Bxg5 $16 {[%emt 0:00:10]} Kd6 {[%emt 0:00:02]} 70. Be3 {[%emt 0:00:53]} Rb3 {[%emt 0:00:21]} 71. Bf2 {[%emt 0:00:36]} (71. Bh6 $16) 71... Rf3 {[%emt 0:00:51] [#]} (71... e5 $11 {remains equal.}) 72. Bg1 $1 {[%emt 0:00:33]} Kc6 {[%emt 0:00:03] [#]} (72... Rf1 $142 73. Be3 Rf3) 73. Rb4 $1 {[%emt 0:00:07]} Ra3 {[%emt 0:01:30]} (73... Rg3 $16 {was called for.} 74. Bf2 Rg2) 74. Bh2 {[%emt 0:00:42]} Kc5 {[%emt 0:00:32]} (74... Ra5 $142 75. Rb6+ Kd7 76. Rd6+ Kc8) 75. Rb6 $18 {[%emt 0:00:26] Threatening mate with Bd6+.} Bc4 $2 {[%emt 0:00:30]} (75... Bc6 $18 76. g5 Rh3) 76. Bd6+ {[%emt 0:00:04]} Kd5 {[%emt 0:01:06] Weighted Error Value: White=0.13 (very precise) /Black=0.09 (flawless)} 1-0

[Event "ESP-ch Teams Primera 2022"]
[Site "Sanxenxo Pontevedra"]
[Date "2022.09.22"]
[Round "6.2"]
[White "Suarez Gomez, Julio"]
[Black "Naiditsch, Arkadij"]
[Result "0-1"]
[ECO "E71"]
[WhiteElo "2440"]
[BlackElo "2666"]
[Annotator "TA"]
[PlyCount "52"]
[EventDate "2022.09.17"]
[EventType "team-tourn"]
[EventCountry "ESP"]
[SourceTitle "playchess.com"]
[Source "ChessBase"]
[SourceQuality "1"]
[TimeControl "5400+30"]

{[%evp 12,52,33,35,39,30,37,38,34,16,59,72,64,-29,0,0,0,0,0,0,0,0,46,12,12,0,0,-27,-7,-364,-359,-356,-368,-527,-512,-512,-462,-645,-521,-649,-645,-1148,-1114]} 1. d4 Nf6 2. c4 g6 3. Nc3 Bg7 4. e4 d6 5. h3 O-O 6. Be3 c6 7. Nf3 Na6 {E90: King's Indian: Classical: Early deviations and 6 h3.} 8. Be2 e5 9. d5 Nh5 {White is slightly better.} 10. g3 f5 11. exf5 gxf5 {[#]} 12. g4 $146 ({White should play} 12. Qd2 $14) ({Predecessor:} 12. Bg5 Nf6 13. Qd2 c5 14. a3 Qe8 15. Nh4 Bd7 16. Qc2 e4 17. Nd1 Kh8 18. Ne3 {0-1 (40) Studer,N (2546)-Yilmaz,M (2604) Moscow 2019}) 12... Nf4 (12... f4 $5 {[%cal Rf4e3]} 13. Bd2 Nf6 $11) 13. Bxf4 exf4 14. Qc2 Re8 15. Kf1 Nc5 16. Rd1 Ne4 (16... Qe7 $11) 17. Rg1 (17. Bd3 $5 {[%cal Rc3e4]} Bxc3 18. bxc3 $14) 17... Qf6 18. g5 {Inhibits Qh6.} Qe7 19. h4 Bd7 (19... Bxc3 $5 20. bxc3 Nxc3 $11) 20. Nd4 $2 {[%mdl 8192] [#] Loses the game.} (20. dxc6 $11 {and White stays safe.} bxc6 21. g6) 20... Nxf2 $1 $19 {[%mdl 512]} 21. Kxf2 {Kg2 is the strong threat.} Bxd4+ ({Wrong is} 21... Qe3+ $2 22. Kg2 Qg3+ 23. Kf1 Qh3+ 24. Rg2 Bxd4 25. Rxd4 $19) 22. Kg2 (22. Rxd4 $142 Qe3+ 23. Kg2 Qxd4 24. Rd1 f3+ 25. Bxf3 Qxh4 26. Qf2 Qxg5+ 27. Qg3 Qxg3+ 28. Kxg3) 22... Bxc3 {A strong pair of Bishops. Black is clearly winning.} ({Stronger than} 22... Qe3 23. Bf3 $17) 23. Bh5 f3+ 24. Kxf3 Qe3+ 25. Kg2 Be5 26. Bxe8 Qg3+ {Weighted Error Value: White=0.92/Black=0.12 (very precise)} 0-1

[Event "ESP-ch Teams Primera 2022"]
[Site "Sanxenxo Pontevedra"]
[Date "2022.09.22"]
[Round "6.3"]
[White "Ponomariov, Ruslan"]
[Black "Laiz Ibanez, Hector"]
[Result "1-0"]
[ECO "B90"]
[WhiteElo "2640"]
[BlackElo "2327"]
[Annotator "TA"]
[PlyCount "51"]
[EventDate "2022.09.17"]
[EventType "team-tourn"]
[EventCountry "ESP"]
[SourceTitle "playchess.com"]
[Source "ChessBase"]
[SourceQuality "1"]
[TimeControl "5400+30"]

{[%evp 15,51,20,11,16,19,0,0,0,8,0,0,0,0,0,0,0,12,20,17,32,18,14,27,27,20,14,9,0,6,8,56,0,0,0,0,0,235,228]} 1. e4 {[%emt 0:00:39]} c5 {[%emt 0:00:13]} 2. Nf3 {[%emt 0:00:10]} d6 {[%emt 0:00:06]} 3. d4 {[%emt 0:00:11]} cxd4 {[%emt 0:00:07]} 4. Nxd4 {[%emt 0:00:04]} Nf6 {[%emt 0:00:07]} 5. Nc3 {[%emt 0:00:05]} a6 {[%emt 0:00:06]} 6. Be3 {[%emt 0:00:11]} e5 {[%emt 0:00:45]} 7. Nb3 {[%emt 0:00:24]} Be6 {[%emt 0:00:08]} 8. Qd2 {[%emt 0:00:21]} Nbd7 {[%emt 0:00:31]} 9. O-O-O {[%emt 0:00:39] B90: Sicilian Najdorf: Unusual White 6th moves, 6 Be3 Ng4 and 6 Be3 e5.} Be7 {[%emt 0:00:21] 9...b5 gains popularity.} 10. h3 {[%emt 0:02:47]} b5 {[%emt 0:16:25]} 11. g4 {[%emt 0:01:31] The position is equal.} O-O {[%emt 0:10:57]} 12. Kb1 {[%emt 0:02:25]} b4 {[%emt 0:07:30]} 13. Nd5 {[%emt 0:00:28]} Bxd5 {[%emt 0:00:10]} 14. exd5 {[%emt 0:00:09]} a5 {[%emt 0:05:47][%cal Ba6a5,Ba5a4,Ba4a3][%mdl 32]} 15. Bb5 {[%emt 0:02:40]} Nb6 {[%emt 0:17:40] [#] aiming for ...a4.} 16. Bc6 {[%emt 0:01:57] A strong pair of Bishops.} Nc4 {[%emt 0:04:48]} 17. Qd3 {[%emt 0:06:14]} Nxe3 {[%emt 0:00:06] [#]} 18. Qxe3 $146 {[%emt 0:08:15]} ({Predecessor:} 18. fxe3 Ra7 19. Nd2 Nd7 20. Ne4 Bh4 21. c4 bxc3 22. Qxc3 Nf6 23. Nd2 Nd7 24. Rc1 {1-0 (55) Mcdermott,F (2185)-Nucci,L (2255) ICCF email 2017}) 18... a4 {[%emt 0:02:19]} 19. Nd2 {[%emt 0:16:41]} Ra5 {[%emt 0:01:08]} 20. Nc4 $36 {[%emt 0:00:26][%mdl 2048] Black is under pressure.} Rc5 {[%emt 0:00:33]} 21. Qd3 {[%emt 0:00:30]} a3 {[%emt 0:01:58]} 22. b3 {[%emt 0:01:31]} Ne8 {[%emt 0:07:33]} (22... Qc7 $11) 23. c3 {[%emt 0:05:47]} (23. Qd2 $14) 23... Qb8 $1 $11 {[%emt 0:03:44]} 24. Rhe1 {[%emt 0:03:21]} bxc3 {[%emt 0:04:17]} 25. Nxa3 {[%emt 0:01:44]} e4 $2 {[%emt 0:07:00] [#]} (25... Nc7 $11 {and Black has nothing to worry.}) 26. Qxe4 {[%emt 0:02:12] Weighted Error Value: White=0.07 (flawless) /Black=0.23 (precise)} 1-0

[Event "ESP-ch Teams Primera 2022"]
[Site "Sanxenxo Pontevedra"]
[Date "2022.09.22"]
[Round "6.4"]
[White "Abal Cores, Lucas"]
[Black "Franco Alonso, Alejandro"]
[Result "1/2-1/2"]
[ECO "B12"]
[WhiteElo "2291"]
[BlackElo "2432"]
[Annotator "TA"]
[PlyCount "166"]
[EventDate "2022.09.17"]
[EventType "team-tourn"]
[EventCountry "ESP"]
[SourceTitle "playchess.com"]
[Source "ChessBase"]
[SourceQuality "1"]
[TimeControl "5400+30"]

{[%evp 9,166,16,28,2,-3,-17,-13,-30,-33,-41,-25,-21,-10,-74,-83,-81,-50,-66,-58,-102,-102,-118,-87,-81,-23,-31,-33,-44,-25,-41,-38,-58,-64,-63,-64,-41,-24,-54,-37,-61,-13,-36,0,0,0,-10,0,-7,0,0,0,0,0,-32,0,0,0,-44,-43,-93,-82,-112,-120,-112,-117,-85,-25,-30,-30,-35,0,-31,-29,-15,-31,-22,-15,-60,-53,-60,-18,-23,0,-59,0,-63,-72,-90,-91,-72,-12,-14,-44,-52,-88,-61,-55,-76,0,0,0,0,0,0,0,0,0,0,0,0,0,0,0,0,0,0,0,0,0,0,0,0,0,0,0,0,0,0,0,0,0,0,0,0,0,0,0,0,0,0,0,0,0,0,0,0,0,0,0,0,0,0,0,0,0,0,0,0,0]} 1. e4 c6 2. d4 d5 3. e5 Bf5 4. Nf3 e6 5. Be2 Ne7 {[%cal Oc6c5]} 6. Nbd2 {B12: Caro-Kann: Advance Variation.} c5 7. c4 Nbc6 {[#]} 8. dxc5 $146 ({Predecessor:} 8. O-O cxd4 9. Nb3 {½-½ (9) Rusche,J (2282)-Pitl,G (2395) Germany 2017}) 8... d4 9. Qa4 d3 {[%mdl 1024] Black has compensation.} 10. Bd1 Ng6 11. Nb3 (11. h3 $11 {remains equal.}) 11... Be7 $17 12. Nbd4 O-O 13. Nxc6 bxc6 14. Be3 {[%cal Bc1e3,Be3d4,Bd4c3][%mdl 32]} Qc7 15. Bd4 Rfd8 16. O-O Bg4 (16... a5 $17 17. Re1 Rab8) 17. Bc3 $1 $11 Bxc5 18. Nd2 Bxd1 (18... Nxe5 19. Bxe5 Qxe5 20. Bxg4 $16) 19. Raxd1 Nf4 20. Nf3 Ne2+ 21. Kh1 Nxc3 22. bxc3 Rd7 23. Rd2 Rad8 24. Rb1 h6 (24... g6 $15) 25. g3 Bb6 26. Kg2 Bc5 27. h4 Rc8 28. Qd1 Rcd8 29. Qe1 Qa5 30. Rb3 Ba3 31. Rd1 Bc5 (31... d2 $5 32. Rxd2 Rxd2 33. Nxd2 Bf8 $11) 32. Rd2 Ba3 33. Nh2 (33. Nd4 Qa4 $15) 33... Qc5 34. f4 (34. Nf1 $15) 34... a5 $17 35. Qg1 Qxg1+ 36. Kxg1 Bc1 37. Rd1 d2 (37... a4 $17 38. Rb4 d2 39. Rxa4 Rd3) 38. a4 $11 Rd3 39. Kf2 h5 40. Nf1 (40. Nf3 $5 {[%cal Rf3g5]}) 40... Kh7 41. Ke2 Kg6 42. Ne3 R8d7 $36 {[%mdl 2048] Black is more active.} 43. c5 Rd8 44. Kf3 R8d4 45. Ke2 $1 Rd8 46. Kf3 $1 R8d4 ({Black should play} 46... f6 $15) 47. cxd4 (47. Ke2 $1 $11) 47... Rxb3 {[%mdl 4096] Endgame KRB-KRN} 48. Ke4 Rb4 49. f5+ {[#]} Kh7 $1 ({Much weaker is} 49... exf5+ 50. Nxf5 Rb7 51. Nd6 $14) 50. fxe6 fxe6 51. Nf1 Rxa4 52. Nxd2 Bxd2 53. Rxd2 $15 {[#] KR-KR} Ra3 ({Better is} 53... Ra1 $1 $17) 54. Rb2 $11 {And now Rb6 would win. The position is equal.} Rxg3 {Threatens to win with ...Rh3.} 55. Rb6 Rg4+ 56. Ke3 Rg3+ 57. Ke2 g5 58. hxg5 ({Much worse is} 58. Rxc6 gxh4 59. Kf2 (59. Rxe6 $2 h3 $19) 59... Rg4 60. Rxe6 h3) 58... h4 {White must now prevent ...h3.} 59. Rxc6 h3 {Strongly threatening ...h2.} 60. Rxe6 Rxg5 61. Re7+ $1 Kg6 62. Re6+ Kf5 (62... Kh7 $5 63. Re7+ $8 Kg6 64. Re6+ Kh7 $11) 63. Rh6 Ke4 64. c6 {c7 is the strong threat.} Kxd4 65. e6 Rg2+ 66. Kf3 Rg7 67. Kf4 Kd5 68. Kf5 Kxc6 69. Kf6 Rg3 70. Kf7 {aiming for e7+.} Rf3+ 71. Ke8 a4 72. e7+ Kc7 73. Rh4 a3 74. Rc4+ Kb6 75. Kd7 Rd3+ 76. Ke6 Re3+ 77. Kf7 Kb5 78. Rc2 Rf3+ 79. Kg6 Re3 80. Kf7 Kb4 81. e8=Q Rxe8 82. Kxe8 Kb3 83. Rh2 a2 {Weighted Error Value: White=0.13 (very precise) /Black=0.12 (very precise)} 1/2-1/2

[Event "ESP-ch Teams Primera 2022"]
[Site "Sanxenxo Pontevedra"]
[Date "2022.09.22"]
[Round "6.5"]
[White "Gonzalez De La Torre, Santiago"]
[Black "Rodriguez Ferreiros, Andres"]
[Result "1-0"]
[ECO "C00"]
[WhiteElo "2439"]
[BlackElo "2110"]
[Annotator "TA"]
[PlyCount "49"]
[EventDate "2022.09.17"]
[EventType "team-tourn"]
[EventCountry "ESP"]
[SourceTitle "playchess.com"]
[Source "ChessBase"]
[SourceQuality "1"]
[TimeControl "5400+30"]

{[%evp 9,49,0,0,-9,0,-7,26,31,10,2,33,30,25,-27,-13,-16,-21,-17,5,15,5,6,220,221,214,214,414,415,395,395,999,983,972,885,1433,1427,6650,5510,5506,2240,1557,1508]} 1. e4 {[%emt 0:00:03]} e6 {[%emt 0:00:09]} 2. Qe2 {[%emt 0:00:08]} c5 {[%emt 0:00:36]} 3. Nf3 {[%emt 0:00:06]} Nc6 {[%emt 0:01:06]} 4. g3 {[%emt 0:00:06]} Nge7 {[%emt 0:02:36]} 5. Bg2 {[%emt 0:01:32]} g6 {[%emt 0:01:19]} 6. h4 {[%emt 0:01:27] C00: French: Unusual White 2nd moves.} h6 {[%emt 0:01:07] [#]} 7. e5 $146 {[%emt 0:01:36]} ({Predecessor:} 7. O-O Bg7 8. d3 d6 9. c3 e5 10. Na3 O-O 11. h5 Bg4 12. hxg6 fxg6 13. Qe3 {0-1 (80) Renner,C (2333)-Mischustov,M (2331) Germany 2018}) 7... d6 {[%emt 0:03:14]} 8. exd6 {[%emt 0:01:41] White has an edge.} Qxd6 {[%emt 0:01:31]} 9. Nc3 {[%emt 0:04:05][%cal Od2d4] Threatening d4!} Nd5 {[%emt 0:20:23]} 10. O-O {[%emt 0:08:57][%cal Od2d4]} Bg7 {[%emt 0:05:10] Against d4} 11. Ne4 {[%emt 0:37:38]} (11. h5 $142) 11... Qe7 $11 {[%emt 0:00:20]} 12. Qc4 {[%emt 0:00:39]} b6 {[%emt 0:04:43]} 13. d4 {[%emt 0:01:50]} Nxd4 {[%emt 0:11:00]} (13... Na5 $5 {[%cal Ra5c4]} 14. Qb5+ Bd7 $15) 14. Nxd4 {[%emt 0:00:09]} Bxd4 {[%emt 0:01:03]} 15. Rd1 $36 {[%emt 0:00:13][%mdl 2048] White is more active.} Bd7 $2 {[%emt 0:32:18] This costs Black the game.} (15... Bb7 $1 $11 {and Black has nothing to worry.}) 16. Rxd4 $18 {[%emt 0:02:36]} cxd4 {[%emt 0:01:59]} 17. Qxd4 {[%emt 0:00:05]} O-O-O $2 {[%emt 0:00:51]} (17... O-O) 18. c4 {[%emt 0:04:11]} Nb4 {[%emt 0:05:04] [#] And now ...Bc6 would win.} 19. c5 {[%emt 0:06:05]} ({Less strong is} 19. Bf4 Bc6 20. Nd6+ Kb8 21. Nxf7+ Ka8 22. Nxd8 Rxd8 23. Bxc6+ Nxc6 $18) 19... Nd5 $2 {[%emt 0:02:23]} (19... Nc6 20. Nd6+ Kb8) 20. Nd6+ {[%emt 0:00:40] White is clearly winning.} Kb8 {[%emt 0:00:14]} 21. Bxd5 {[%emt 0:00:57]} exd5 {[%emt 0:01:45]} 22. Bf4 {[%emt 0:00:08]} Qe6 {[%emt 0:00:39]} 23. cxb6 {[%emt 0:02:13] [#] Qc5 would kill now.} g5 {[%emt 0:01:05]} 24. bxa7+ {[%emt 0:00:13]} (24. Qc5 $142 Bc6 25. Qxc6) 24... Ka8 {[%emt 0:00:10]} 25. Qb6 {[%emt 0:00:08] Weighted Error Value: White=0.07 (flawless) /Black=0.55} 1-0